Cogmind - Beta 11.1 @@@ ROGUE MODE // 2022.05.07 @ 10:48:31 Player: darki Result: Self-destructed Performance ------------- Evolutions (2) 1000 Regions Visited (5) 1000 Robots Destroyed (38) 190 Value Destroyed (777) 777 Prototype IDs (0) 0 Alien Tech Used (0) 0 Bonus (0) 0 TOTAL SCORE: 2967 Bonus ------- None Cogmind --------- Core Integrity 89/550 Matter 207/300 Energy 26/100 System Corruption 0% Temperature Cool (46) Movement Core (700) Ox13 Location -8/Materials Parts ------- > --- POWER (1) -------- (None) > --- PROPULSION (4) --- Improved Aluminum Leg > --- UTILITY (4) ------ High-capacity Storage Unit Improved Terrain Scanner Seismic Detector > --- WEAPON (2) ------- (None) > --- INVENTORY (20) --- (None) Peak State ------------ > --- POWER ------------ Light Nuclear Core > --- PROPULSION ------- Wheel Wheel Wheel > --- UTILITY ---------- High-capacity Storage Unit Advanced Targeting Computer Hardened Light Armor Plating Hardened Light Armor Plating > --- WEAPON ----------- Light EM Pulse Cannon Heavy Assault Rifle > --- INVENTORY -------- Fission Core Light Treads Improved Terrain Scanner Seismic Detector Medium Armor Plating Hardened Light Armor Plating Hardened Light Armor Plating Heavy Explosive Trap Heavy Explosive Trap Heavy Explosive Trap Heavy Explosive Trap [Rating: 20] Favorites ----------- Power Light Ion Engine Engine Light Ion Engine Power Core Light Nuclear Core Propulsion Light Treads Treads Light Treads Leg Improved Aluminum Leg Wheel Wheel Flight Unit Flight Unit Utility Hardened Light Armor Plating Device Sensor Array Storage High-capacity Storage Unit Processor Visual Processing Unit Protection Hardened Light Armor Plating Weapon Light EM Pulse Cannon Energy Gun Medium Laser Energy Cannon Light EM Pulse Cannon Ballistic Gun Assault Rifle Launcher Grenade Launcher Special Weapon Mining Laser Build | -11 -10 -10 -10 -9 -8 ------- Run | Scr Mat Min Exi Min Mat Slots Evolved 4 | . . . . . 4 Power . | . . . . . . Propulsion 2 | . . . . . 2 Utility 2 | . . . . . 2 Weapon . | . . . . . . Parts Attached 52 | 7 10 . 5 11 19 Power 5 | 1 1 . . 2 1 Engine 4 | 1 1 . . 2 . Core 1 | . . . . . 1 Reactor . | . . . . . . Propulsion 12 | 2 . . 2 3 5 Treads 6 | 2 . . 2 1 1 Leg 1 | . . . . . 1 Wheel 4 | . . . . 2 2 Hover . | . . . . . . Flight 1 | . . . . . 1 Utility 19 | 2 4 . . 4 9 Device 3 | . 1 . . . 2 Storage 4 | 2 . . . 2 . Processor 2 | . 1 . . . 1 Hackware . | . . . . . . Protection 10 | . 2 . . 2 6 Artifact . | . . . . . . Weapon 16 | 2 5 . 3 2 4 Energy Gun 1 | 1 . . . . . Energy Cannon 3 | . 1 . 1 1 . Ballistic Gun 8 | 1 2 . . 1 4 Ballistic Cannon . | . . . . . . Launcher 2 | . 2 . . . . Special Weapon 2 | . . . 2 . . Impact Weapon . | . . . . . . Slashing Weapon . | . . . . . . Piercing Weapon . | . . . . . . Special Melee Weapon . | . . . . . . Unidentified Prototypes . | . . . . . . Corrupted Parts 1 | . . . . 1 . System Corruption 1 | . . . . 1 . Parts Lost 22 | . . . 2 1 19 Power 1 | . . . . . 1 Propulsion 7 | . . . . 1 6 Utility 7 | . . . . . 7 Weapon 7 | . . . 2 . 5 Highest Loss Streak 14 | . . . 2 1 14 To Critical Strikes . | . . . . . . Average Slot Usage (%) 91 | . 98 100 89 95 66 Engine 12 | . 14 14 14 14 . Treads 25 | . 28 28 26 27 3 Wheel 1 | . . . . . 21 Device 1 | . 5 . . . . Storage 3 | . 4 . . 6 9 Protection 22 | . 14 28 28 21 13 Energy Cannon 7 | . 7 14 4 13 2 Ballistic Gun 11 | . 16 14 9 9 10 Special Weapon 2 | . . . 4 . . Naked Turns . | . . . . . . Heaviest Build 69 | 11 19 19 19 59 69 Greatest Support 40 | 40 40 40 40 20 30 Greatest Overweight (x) 5 | . . . . 5 3 Average Overweight (x) . | . . . . . 1 Largest Inventory Capacity 20 | 8 8 5 5 20 20 Average Capacity 8 | 6 6 5 5 11 20 Most Carried 12 | . 5 5 5 12 12 Average Carried 5 | . 3 5 4 6 8 Final Capacity 20 | 8 5 5 5 20 20 Final Carried 12 | . 5 5 5 12 . Class Distribution -------------------- 93% | Mutant 6% | Scavenger-Mutant Dominant Class ---------------- Mutant | -10/Materials Mutant | -10/Mines Mutant | -10/Exiles Mutant | -9/Mines Scavenger-Mutant | -8/Materials Resources | -11 -10 -10 -10 -9 -8 ----------- Run | Scr Mat Min Exi Min Mat Matter Collected 1014 | 250 325 . . 243 196 Remotely . | . . . . . . Salvage Created 1015 | 55 497 . . 188 275 Parts 87 | 3 41 . . 22 21 Haulers Intercepted 2 | . 2 . . . . Recyclers Shooed . | . . . . . . Parts Field Recycled . | . . . . . . Retrieved Matter . | . . . . . . Parts Self-Destructed . | . . . . . . Prevented . | . . . . . . Kills | -11 -10 -10 -10 -9 -8 ------- Run | Scr Mat Min Exi Min Mat Combat Hostiles Destroyed 23 | . 12 . . 3 8 Guns 7 | . 2 . . . 5 Cannons 10 | . 4 . . 3 3 AOE 6 | . 6 . . . . Classes Destroyed 10 | 1 5 . . 2 2 Worker 6 | . 2 . . 3 1 Tunneler 3 | . . . . 2 1 Hauler 2 | . 2 . . . . Recycler 2 | 1 1 . . . . Watcher 2 | . 2 . . . . Swarmer 11 | . 6 . . 2 3 Grunt 8 | . 6 . . . 2 Duelist 1 | . . . . . 1 Sentry 2 | . . . . 1 1 Specialist 1 | . . . . . 1 Best Kill Streak 6 | 1 6 . . 3 4 Combat Bots Only 6 | . 6 . . 2 4 Max Kills in Single Turn 2 | 1 2 . . 1 2 Gunslinging . | . . . . . . Exploded 2 | . 2 . . . . Melee . | . . . . . . Uniques/NPCs Destroyed . | . . . . . . Combat | -11 -10 -10 -10 -9 -8 -------- Run | Scr Mat Min Exi Min Mat Damage Taken 3127 | . 331 . 231 218 2347 Core 529 | . 61 . . 7 461 Absorbed by Shields . | . . . . . . Core Remaining (%) 86 | 100 . . . 72 . Volleys Fired 160 | 3 60 . 46 16 35 Largest 2 | 2 2 . 2 2 2 Hottest 100 | 70 76 . 100 79 79 Shots Fired 223 | 6 85 . 49 23 60 Gun 110 | 6 50 . 3 6 45 Cannon 65 | . 28 . 5 17 15 Launcher 7 | . 7 . . . . Special 41 | . . . 41 . . Kinetic 107 | 3 50 . 3 6 45 Thermal 44 | 3 . . 41 . . Explosive 7 | . 7 . . . . Electromagnetic 65 | . 28 . 5 17 15 Robot Hit Streak 12 | 2 10 . . 6 12 Robot Miss Streak 4 | 3 4 . . 1 4 Penetration Max . | . . . . . . Secondary Targets 2 | . . . . . 2 Max Gunslinging Chain 1 | . . . . . 1 Shots Hit Robots 93 | 2 35 . . 14 42 Core Hits 53 | 2 24 . . 10 17 Critical Kills . | . . . . . . Critical Parts Destroyed . | . . . . . . Critical Strikes 1 | . . . . . 1 Destroy 1 | . . . . . 1 Melee Attacks . | . . . . . . Impact . | . . . . . . Slashing . | . . . . . . Piercing . | . . . . . . Sneak Attacks . | . . . . . . Combat Hostiles . | . . . . . . Follow-up Attacks . | . . . . . . Damage Inflicted 2345 | 22 1018 . . 324 981 Guns 886 | 22 258 . . 42 564 Cannons 747 | . 288 . . 232 227 Explosions 712 | . 472 . . 50 190 Melee . | . . . . . . Ramming . | . . . . . . Kinetic 873 | 9 258 . . 42 564 Thermal 151 | 13 88 . . 50 . Explosive 574 | . 384 . . . 190 Electromagnetic 747 | . 288 . . 232 227 Impact . | . . . . . . Slashing . | . . . . . . Piercing . | . . . . . . Highest Corruption 8 | . . . 7 8 . Average Corruption 7 | . . . 7 7 . Corruption Purged . | . . . . . . Corruption Blocked . | . . . . . . Effects 67 | . . . 19 48 . Message Errors 16 | . . . 4 12 . Matter Fused 14 | . . . 5 9 . Heat Flow Errors 7 | . . . 3 4 . Energy Discharges 8 | . . . 2 6 . Data Loss (minor) 9 | . . . 3 6 . Data Loss (major) 7 | . . . 1 6 . Misfires 3 | . . . . 3 . Alerts 2 | . . . 1 1 . Weapon Failures 1 | . . . . 1 . Overload Shots . | . . . . . . Overflow Damage 11 | . 3 . . 8 . Projectiles . | . . . . . . Explosions 11 | . 3 . . 8 . Melee . | . . . . . . Knockbacks . | . . . . . . Impact . | . . . . . . Kinetic . | . . . . . . Secondary . | . . . . . . Self-Inflicted Damage 37 | . . . . 37 . Shots 1 | . . . . 1 . Rammed . | . . . . . . Targets Rammed . | . . . . . . Kicked . | . . . . . . Crushed . | . . . . . . Highest Temperature 376 | 50 242 . 376 267 351 Average Temperature 113 | 26 83 . 125 78 166 Received Heat Transfer 894 | . 48 . . 63 783 Effects 4 | . 1 . 3 . . Shutdowns 1 | . . . 1 . . Interference 2 | . 1 . 1 . . Short Circuit 1 | . . . 1 . . Siege Activations . | . . . . . . Robots Corrupted . | . . . . . . Combat Hostiles . | . . . . . . Parts Fried 3 | . 2 . . . 1 Impact Corruptions . | . . . . . . Robots Melted . | . . . . . . Combat Hostiles . | . . . . . . Parts Melted . | . . . . . . Heat Transferred 187 | 37 50 . . 100 . Parts Sabotaged . | . . . . . . Parts Stolen . | . . . . . . Parts Stripped . | . . . . . . Power Chain Reactions 1 | . . . . 1 . Missiles Intercepted . | . . . . . . Alert | -11 -10 -10 -10 -9 -8 ------- Run | Scr Mat Min Exi Min Mat Peak Influence 265 | 5 265 53 . 136 230 Initial 53 | . 3 53 . . 3 Average 74 | 1 139 53 . 11 113 Maximum Alert Level 1 | . 1 . . . 1 Low Security (%) 86 | 100 68 100 . 100 90 Level 1 13 | . 31 . . . 9 Level 2 . | . . . . . . Level 3 . | . . . . . . Level 4 . | . . . . . . Level 5 . | . . . . . . High Security . | . . . . . . Max Security . | . . . . . . Squads Dispatched 9 | . 3 . . . 6 Investigation 4 | . 2 . . . 2 Extermination . | . . . . . . Reinforcement 5 | . 1 . . . 4 Assault . | . . . . . . Garrison . | . . . . . . Intercept . | . . . . . . Searches Triggered . | . . . . . . Construction Impeded . | . . . . . . Haulers Reinforced . | . . . . . . Active Scanning Responses . | . . . . . . Cargo Convoy Interrupts . | . . . . . . Stealth | -11 -10 -10 -10 -9 -8 --------- Run | Scr Mat Min Exi Min Mat Distress Signals 1 | . . . . . 1 Communications Jammed . | . . . . . . Distress Signals . | . . . . . . Times Spotted 58 | . 23 . . 5 30 Peak Tracking Total 16 | . 4 . . 3 16 Tactical Retreats 2 | . . . . 1 1 Traps | -11 -10 -10 -10 -9 -8 ------- Run | Scr Mat Min Exi Min Mat Traps Triggered 1 | . 1 . . . . Indirectly . | . . . . . . Trap Hack Attempts . | . . . . . . Triggered . | . . . . . . Disarmed . | . . . . . . Reprogrammed . | . . . . . . Reused 3 | . . . . . 3 Traps Extracted . | . . . . . . Installed 4 | . . . . . 4 Triggered 3 | . . . . . 3 Most Traps Carried 4 | . . . . 4 4 Machines | -11 -10 -10 -10 -9 -8 ---------- Run | Scr Mat Min Exi Min Mat Machines Disabled 14 | . 7 . 4 2 1 Max in Single Turn 2 | . 2 . 1 2 1 Machines Sabotaged . | . . . . . . Garrisons Compromised . | . . . . . . Overloaded Fab Kills . | . . . . . . Hacking | -11 -10 -10 -10 -9 -8 --------- Run | Scr Mat Min Exi Min Mat Machines Accessed 15 | . 8 . 4 1 2 Terminals 9 | . 6 . . 1 2 Fabricators . | . . . . . . Repair Stations 1 | . 1 . . . . Recycling Units 1 | . 1 . . . . Scanalyzers . | . . . . . . Garrison Access . | . . . . . . Total Hacks 24 | . 14 . 4 2 4 Successful 11 | . 7 . 4 . . Failed 13 | . 7 . . 2 4 Catastrophic 4 | . 1 . . 1 2 Database Lockouts . | . . . . . . Manual 14 | . 7 . 1 2 4 Terminals 16 | . 10 . . 2 4 Fabricators . | . . . . . . Repair Stations 3 | . 3 . . . . Recycling Units 1 | . 1 . . . . Scanalyzers . | . . . . . . Garrison Access . | . . . . . . Terminal Hacks 9 | . 5 . 4 . . Record 6 | . 2 . 4 . . Level Access Points 1 | . 1 . . . . Emergency Access Points 1 | . 1 . . . . Zone Layout 1 | . 1 . . . . Fabricator Hacks . | . . . . . . Repair Station Hacks 1 | . 1 . . . . Scan Component 1 | . 1 . . . . Recycling Unit Hacks 1 | . 1 . . . . Report Inventory 1 | . 1 . . . . Scanalyzer . | . . . . . . Garrison Access Hacks . | . . . . . . Unauthorized Hacks . | . . . . . . Terminals . | . . . . . . Fabricators . | . . . . . . Repair Stations . | . . . . . . Recycling Units . | . . . . . . Scanalyzers . | . . . . . . Garrison Access . | . . . . . . Data Cores Recovered . | . . . . . . Used . | . . . . . . Hacking Detections 9 | . 6 . . 1 2 Full Trace Events 5 | . 2 . . 1 2 Feedback Events . | . . . . . . Feedback Blocked . | . . . . . . Robot Schematics Acquired . | . . . . . . Robots Built . | . . . . . . Authchips . | . . . . . . Time . | . . . . . . Total Robot Build Rating . | . . . . . . Part Schematics Acquired . | . . . . . . Parts Built . | . . . . . . Authchips . | . . . . . . Time . | . . . . . . Total Part Build Rating . | . . . . . . Parts Repaired . | . . . . . . Time . | . . . . . . Parts Recycled . | . . . . . . Recycled Matter . | . . . . . . Retrieved Matter . | . . . . . . Retrieved Components . | . . . . . . Parts Scanalyzed . | . . . . . . Part Schematics Acquired . | . . . . . . Parts Damaged . | . . . . . . Bothacking | -11 -10 -10 -10 -9 -8 ------------ Run | Scr Mat Min Exi Min Mat Used RIF Installer . | . . . . . . Robots Hacked . | . . . . . . Non-combat . | . . . . . . Combat . | . . . . . . Robot Hacks Applied . | . . . . . . Relay Couplers Released . | . . . . . . Fabnet Peak Effective % . | . . . . . . Robots Rewired . | . . . . . . Allies Hacked . | . . . . . . Hacks Repelled . | . . . . . . Allies | -11 -10 -10 -10 -9 -8 -------- Run | Scr Mat Min Exi Min Mat Total Allies 1 | . . 1 . . . Largest Group 1 | . . 1 1 . . Highest-Rated Group 31 | . . 31 31 . . Highest-Rated Ally 31 | . . 31 31 . . Total Orders . | . . . . . . Ally Attacks . | . . . . . . Total Damage . | . . . . . . Kills . | . . . . . . Allies Corrupted . | . . . . . . Allies Melted . | . . . . . . Intel | -11 -10 -10 -10 -9 -8 ------- Run | Scr Mat Min Exi Min Mat Robot Analysis Total . | . . . . . . Derelict Logs Recovered 1 | . . . . 1 . Drone Launches . | . . . . . . Drone Recoveries . | . . . . . . Exploration | -11 -10 -10 -10 -9 -8 ------------- Run | Scr Mat Min Exi Min Mat Turns Passed 5489 | 89 1228 34 2320 1391 427 Spaces Moved 2632 | 47 618 16 1184 572 195 Core 7 | 4 . . . 3 . Treads 2401 | 43 618 16 1184 540 . Legs 1 | . . . . . 1 Wheels 223 | . . . . 29 194 Hover . | . . . . . . Flight . | . . . . . . Fastest Speed 50 | 50 160 160 160 110 95 Average Speed 170 | 150 160 160 160 225 106 Slowest Speed 330 | 160 160 160 160 320 330 Overloaded Moves . | . . . . . . Propulsion Burnouts . | . . . . . . Robots Hopped . | . . . . . . Cave-ins Triggered 1 | . . . 1 . . Exploration Rate (%) 51 | 4 91 3 94 99 18 Regions Visited 5 Branch Regions 3 Pre-discovered Areas . | . . . . . . Known Exits Taken . | . . . . . . Unknown Exits Taken 5 | 1 1 1 1 1 . Scrap Searched 1 | . . . . 1 . Spaces Dug 10 | . . . 10 . . Terrain Destroyed 74 | . 24 . 11 23 16 Melee . | . . . . . . Projectile 11 | . . . 11 . . AOE 63 | . 24 . . 23 16 Terrain Rammed . | . . . . . . Walls Destroyed . | . . . . . . Machines Disabled . | . . . . . . Actions | -11 -10 -10 -10 -9 -8 --------- Run | Scr Mat Min Exi Min Mat Total 3341 | 57 775 25 1480 649 355 Wait 441 | . 72 8 232 37 92 Move 2627 | 46 617 15 1183 571 195 Hop . | . . . . . . Pick Up 24 | . 6 1 6 9 2 Fast Attach 28 | 7 7 . 2 4 8 Attach 14 | . 1 . . 2 11 Detach 6 | . 4 . . . 2 Swap 10 | . 2 . 3 5 . Drop 27 | 1 6 1 8 5 6 Fire 160 | 3 60 . 46 16 35 Melee . | . . . . . . Ram . | . . . . . . Kick . | . . . . . . Crush . | . . . . . . Escape Stasis . | . . . . . . Rewire . | . . . . . . Trap 4 | . . . . . 4 Miscellaneous . | . . . . . . Route ------- -11/Scrapyard -10/Materials (discovered 5 exits: *Mat x3 / [*Min x2]) -10/Mines -10/Exiles (discovered 2 exits: *Min x2) -9/Mines (discovered 2 exits: *Mat x2) -8/Materials (discovered 1 exit: [*Fac]) History --------- Turn | Location | Event 13 | -11/Scrapyard | Discovered new exit (range 15) 90 | -11/Scrapyard | Entered Materials 308 | -10/Materials | Build established: Mutant 388 | -10/Materials | Discovered new exit (range 13) 474 | -10/Materials | Discovered new exit (range 7) 764 | -10/Materials | Discovered new exit (range 12) 1048 | -10/Materials | Identified exit to Materials 1275 | -10/Materials | Discovered new exit (range 7) 1318 | -10/Materials | Entered Mines 1321 | -10/Mines | Received a Mining Laser from a helpful Derelict 1339 | -10/Mines | Deemed a non-threat by the Exiles lab entrance 1339 | -10/Mines | Discovered new exit (range 5) 1352 | -10/Mines | Entered Exiles 1352 | -10/Exiles | Found Exiles lab abandoned 1352 | -10/Exiles | Accompanied by 1 ally 1376 | -10/Exiles | Discovered new exit (range 15) 1572 | -10/Exiles | Discovered new exit (range 12) 2974 | -10/Exiles | Crushed by falling debris 3672 | -10/Exiles | Entered Mines 3689 | -9/Mines | Met a Derelict bent on vengeance 3737 | -9/Mines | Discovered new exit (range 6) 3760 | -9/Mines | Learned Materials terminal intel 4435 | -9/Mines | Found a hidden stash of uninstalled traps 4720 | -9/Mines | Discovered new exit (range 11) 5063 | -9/Mines | Entered Materials 5063 | -8/Materials | Evolved 4 slots: Propulsion x2, Utility x2 5064 | -8/Materials | Loaded intel: 12 terminal locations 5198 | -8/Materials | Discovered new exit (range 15) 5244 | -8/Materials | Lost 4 parts (1p2u1w) 5463 | -8/Materials | Core integrity fell below 50% 5489 | -8/Materials | Core integrity fell below 20% 5490 | -8/Materials | Self-destructed Last Messages --------------- 05465_ Hpw. Shotgun destroyed. 05466_ L-31 Rogue destroyed. 05468_ Acquired Imp. Aluminum Leg. 05470_ Hrd. Light Armor Plating destroyed. 05473_ Med. Armor Plating destroyed. 05474_ Critical hit (Burn: +37). 05477_ Hrd. Light Armor Plating destroyed. 05478_ Hpw. Shotgun destroyed. 05479_ K-01 Serf collects debris. 05484_ Terminal disabled. 05484_ Critical hit (Burn: +37). 05485_ K-01 Serf collects debris. 05487_ Minigun destroyed. 05487_ Acquired Unknown Flight Unit. 05487_ Identified Flight Unit. 05487_ Hvy. Assault Rifle destroyed. 05488_ Penetrated by Slug. 05488_ Critical hit (Burn: +37). 05489_ K-01 Serf collects debris. 05489_ Flight Unit destroyed. Map ----- +----------------------------------------------------+ | ???????????????????????????T????????????? | | ??T????????????????????????"????????????? | | ????????????????????????????????????????? | | ???????????????????????????#????????????? | | ??????????????????????????? ????????????? | | ??????????????????????#???? ????????????? | | ??????????????????????# ?"" ""??????????? | | ??????????????????????# """ ""??????????? | | ????????????????#####?? """ ""??????????? | | ??????????????? #? ??????????? | | ???????????????H #####+ ##?????????? | | ???????????????? ######????? | | ?????????????????# ?????? | | ?????????????????# ??????? | | ?????????????????# ???????? | | ?????????????????# % ###+###????? | | ?????????????????# # T #????? | | ?????????????????# %# #????? | | ?????????????????# % # =#????? | | ??????????######## """% #% #????? | | ??????????# # """ ## #????? | | ??????????# g # """ ##??######## | | ??????????#= k Y=+ ###### # | | ??????????# x*# % # | | ??????????# x"TYg# % # | | ??????????# g @# " | | ??????????#####g## ###+#######"" " | | #?????????????#g! ## #"" | | ??????????????# ## """#" ! | | ??????????????# ## """"" % | | ??????????????# ## """"" | | ??????????????# ## #" | | ??????????????# ## ! "" | | ??????????????+ #######" | | ??????????????# #?????##""""" "# | | ??????????????# === #??????# "/ " | | ??????????????# === #??????### # | | ??????????????# == #????????? """ # | | ??????????????# ????????? """ # " | | ??????????????? ????????? """ # " | | ??????????????? ?????????? ?# " | | ??????????????? ??????????????! ???# | | ???????????????????????????????? "??# | | ????????????????????????????????? ???#### | | ????????????????????????????????? ?????? | | ????????????????????????????????? ??????? | | ????????????????????????????????????????? | | ????????????????????????????????????????? | | ????????????????????????????????????????? | | ????????????????????????????????????????? | +----------------------------------------------------+ Best States ------------- Heat Dissipation 31 Energy Generation 14 Energy Capacity 265 Matter Stores 300 Matter Capacity 300 Sight Range 18 Robot Scan Range 14 Terrain Scan Range 16 Terrain Scan Density 10 Armor Coverage 525 Evasion (%) 41 Targeting Accuracy 8 Recoil Reduction 2 Item Schematics ----------------- None Robot Schematics ------------------ None Fabricated ------------ Nothing Alien Tech Used ----------------- None Achievements -------------- None Challenges ------------ None Game ------ Seed CombatImpulseShotgun Manual? 0 Play Time 00:29:06 Cumulative 54.5 hours Start 2022.05.07 @ 10:18:25 End 2022.05.07 @ 10:48:31 Sessions 1 Manual Loads 0 Difficulty Rogue Special Mode None Game No. 61 Rogue 61 Adventurer 0 Explorer 0 Win Type - Total 0 Types 0/0/0/0/0/0/0/0/0 Lore% 33 Gallery% 41 Achievement% 32 Wizard Run 0 Options --------- ASCII 0 Keyboard 0 Movement Mouse Keybinds 0 Fullscreen 1 Font 18/SmallcapsGlow Map View 76x50 Tactical HUD 1 Map Filters NONE Filters NONE Steam 1 RUN: 37ee722f-6d91-4f48-98d0-0a3e067fc21b